[Event "Titled Tuesday Blitz May 9 Early 2023"]
[White "Feinig, Mario"]
[Black "Gontcharov, Vladislav"]
[WhiteFideId "1618113"]
[BlackFideId "4123492"]
[WhiteElo "2163"]
[BlackElo "2420"]
[Result "0-1"]
[Round "08"]
[TimeControl "180+2"]
[Date "2023.05.09"]
[WhiteClock "0:00:11"]
[BlackClock "0:00:44"]

1. e4 {[%clk 0:02:56]}  e6 {[%clk 0:03:00]} 2. d3 {[%clk 0:02:51]}  c5 {[%clk 0:02:58]} 3. g3 {[%clk 0:02:48]}  Nc6 {[%clk 0:02:59]} 4. Bg2 {[%clk 0:02:47]}  g6 {[%clk 0:02:58]} 5. f4 {[%clk 0:02:45]}  Bg7 {[%clk 0:02:58]} 6. c3 {[%clk 0:02:42]}  Nge7 {[%clk 0:02:54]} 7. Nf3 {[%clk 0:02:39]}  d6 {[%clk 0:02:51]} 8. O-O {[%clk 0:02:37]}  O-O {[%clk 0:02:50]} 9. Be3 {[%clk 0:02:28]}  Rb8 {[%clk 0:02:50]} 10. a4 {[%clk 0:02:18]}  b5 {[%clk 0:02:45]} 11. axb5 {[%clk 0:02:17]}  Rxb5 {[%clk 0:02:44]} 12. Qc2 {[%clk 0:02:05]}  a5 {[%clk 0:02:44]} 13. Na3 {[%clk 0:02:05]}  Rb8 {[%clk 0:02:41]} 14. Nc4 {[%clk 0:02:00]}  Ba6 {[%clk 0:02:30]} 15. e5 {[%clk 0:01:46]}  Nf5 {[%clk 0:02:04]} 16. Bf2 {[%clk 0:01:44]}  dxe5 {[%clk 0:01:22]} 17. Ncxe5 {[%clk 0:01:26]}  Nxe5 {[%clk 0:01:18]} 18. Nxe5 {[%clk 0:01:26]}  Bxe5 {[%clk 0:01:18]} 19. fxe5 {[%clk 0:01:26]}  Bxd3 {[%clk 0:01:18]} 20. Qc1 {[%clk 0:01:13]}  Bxf1 {[%clk 0:01:17]} 21. Bxf1 {[%clk 0:01:14]}  Qb6 {[%clk 0:01:14]} 22. g4 {[%clk 0:01:09]}  Ne7 {[%clk 0:01:12]} 23. Bh4 {[%clk 0:01:08]}  c4+ {[%clk 0:01:07]} 24. Kh1 {[%clk 0:01:07]}  Rfd8 {[%clk 0:01:02]} 25. Bxe7 {[%clk 0:01:01]}  Qb7+ {[%clk 0:01:01]} 26. Bg2 {[%clk 0:00:55]}  Qxe7 {[%clk 0:01:01]} 27. Rxa5 {[%clk 0:00:56]}  Qd7 {[%clk 0:00:59]} 28. Bf3 {[%clk 0:00:53]}  Qd2 {[%clk 0:00:56]} 29. Qf1 {[%clk 0:00:53]}  Rxb2 {[%clk 0:00:55]} 30. Bg2 {[%clk 0:00:49]}  Qxc3 {[%clk 0:00:52]} 31. Ra7 {[%clk 0:00:46]}  Rf8 {[%clk 0:00:51]} 32. h4 {[%clk 0:00:36]}  Qd4 {[%clk 0:00:50]} 33. h5 {[%clk 0:00:28]}  Qxa7 {[%clk 0:00:46]} 34. h6 {[%clk 0:00:25]}  Qf2 {[%clk 0:00:44]} 35. g5 {[%clk 0:00:19]}  Qxf1+ {[%clk 0:00:43]} 36. Bxf1 {[%clk 0:00:19]}  Rd8 {[%clk 0:00:43]} 37. Bg2 {[%clk 0:00:17]}  Rd1+ {[%clk 0:00:41]} 38. Kh2 {[%clk 0:00:17]}  c3 {[%clk 0:00:42]} 39. Kh3 {[%clk 0:00:15]}  Rxg2 {[%clk 0:00:42]} 40. Kxg2 {[%clk 0:00:13]}  c2 {[%clk 0:00:43]} 41. Kh3 {[%clk 0:00:13]}  c1=Q {[%clk 0:00:43]} 42. Kh4 {[%clk 0:00:14]}  Qc4+ {[%clk 0:00:43]} 43. Kg3 {[%clk 0:00:13]}  Rd3+ {[%clk 0:00:43]} 44. Kf2 {[%clk 0:00:11]}  Qc2+ {[%clk 0:00:44]} 0-1


[Site "https://www.chess.com"]

[Event "Titled Tuesday Blitz May 9 Early 2023"]
[White "Andrews, Todd"]
[Black "Spitzl, Vinzent"]
[WhiteFideId "2012456"]
[BlackFideId "12901253"]
[WhiteElo "2173"]
[BlackElo "2225"]
[Result "1-0"]
[Round "08"]
[TimeControl "180+2"]
[Date "2023.05.09"]
[WhiteClock "0:01:07"]
[BlackClock "0:00:24"]

1. e4 {[%clk 0:03:00]}  c5 {[%clk 0:02:59]} 2. Nf3 {[%clk 0:02:56]}  d6 {[%clk 0:02:59]} 3. d4 {[%clk 0:02:57]}  cxd4 {[%clk 0:03:00]} 4. Nxd4 {[%clk 0:02:57]}  Nf6 {[%clk 0:03:01]} 5. Nc3 {[%clk 0:02:58]}  a6 {[%clk 0:03:01]} 6. Bc4 {[%clk 0:02:58]}  e6 {[%clk 0:03:01]} 7. Bb3 {[%clk 0:02:58]}  Nc6 {[%clk 0:02:59]} 8. Be3 {[%clk 0:02:58]}  Be7 {[%clk 0:02:58]} 9. Qe2 {[%clk 0:02:58]}  Na5 {[%clk 0:02:57]} 10. O-O-O {[%clk 0:02:58]}  Nxb3+ {[%clk 0:02:56]} 11. axb3 {[%clk 0:02:58]}  O-O {[%clk 0:02:53]} 12. g4 {[%clk 0:02:58]}  Qc7 {[%clk 0:02:47]} 13. g5 {[%clk 0:02:58]}  Nd7 {[%clk 0:02:47]} 14. h4 {[%clk 0:02:45]}  b5 {[%clk 0:02:45]} 15. Nf5 {[%clk 0:02:27]}  exf5 {[%clk 0:02:09]} 16. Nd5 {[%clk 0:02:24]}  Qd8 {[%clk 0:02:09]} 17. exf5 {[%clk 0:02:24]}  Bb7 {[%clk 0:01:58]} 18. f6 {[%clk 0:02:19]}  gxf6 {[%clk 0:01:20]} 19. gxf6 {[%clk 0:02:19]}  Nxf6 {[%clk 0:01:17]} 20. Nxe7+ {[%clk 0:01:49]}  Qxe7 {[%clk 0:01:13]} 21. Rhg1+ {[%clk 0:01:49]}  Kh8 {[%clk 0:01:12]} 22. Bd4 {[%clk 0:01:44]}  Qd8 {[%clk 0:00:40]} 23. Qg4 {[%clk 0:01:09]}  Rg8 {[%clk 0:00:31]} 24. Qxg8+ {[%clk 0:01:07]}  Qxg8 {[%clk 0:00:24]} 25. Bxf6+ {[%clk 0:01:07]} 1-0


[Site "https://www.chess.com"]

[Event "Titled Tuesday Blitz May 9 Early 2023"]
[White "Thorhallsson, Simon"]
[Black "Mazurkiewicz, Michal"]
[WhiteFideId "2310090"]
[BlackFideId "1124943"]
[WhiteElo "2108"]
[BlackElo "2054"]
[Result "1-0"]
[Round "08"]
[TimeControl "180+2"]
[Date "2023.05.09"]
[WhiteClock "0:00:11"]
[BlackClock "0:00:01"]

1. e4 {[%clk 0:03:00]}  d6 {[%clk 0:02:59]} 2. d4 {[%clk 0:03:00]}  Nf6 {[%clk 0:02:58]} 3. Nc3 {[%clk 0:03:00]}  c6 {[%clk 0:02:58]} 4. f4 {[%clk 0:02:57]}  Qb6 {[%clk 0:02:58]} 5. e5 {[%clk 0:02:53]}  Nd5 {[%clk 0:02:56]} 6. Nxd5 {[%clk 0:02:48]}  cxd5 {[%clk 0:02:57]} 7. c3 {[%clk 0:02:48]}  Bf5 {[%clk 0:02:57]} 8. Bd3 {[%clk 0:02:47]}  g6 {[%clk 0:02:56]} 9. Bxf5 {[%clk 0:02:45]}  gxf5 {[%clk 0:02:57]} 10. Qd3 {[%clk 0:02:41]}  e6 {[%clk 0:02:56]} 11. Nf3 {[%clk 0:02:39]}  Nc6 {[%clk 0:02:56]} 12. O-O {[%clk 0:02:37]}  Be7 {[%clk 0:02:42]} 13. Kh1 {[%clk 0:02:26]}  O-O {[%clk 0:02:38]} 14. g4 {[%clk 0:02:18]}  fxg4 {[%clk 0:02:36]} 15. Rg1 {[%clk 0:02:18]}  Kh8 {[%clk 0:02:29]} 16. Rxg4 {[%clk 0:02:17]}  Rg8 {[%clk 0:02:28]} 17. Rg3 {[%clk 0:02:08]}  Rg6 {[%clk 0:02:25]} 18. f5 {[%clk 0:01:28]}  exf5 {[%clk 0:01:58]} 19. Qxf5 {[%clk 0:01:27]}  dxe5 {[%clk 0:01:58]} 20. dxe5 {[%clk 0:01:06]}  Qf2 {[%clk 0:01:32]} 21. Bd2 {[%clk 0:00:58]}  Rag8 {[%clk 0:01:20]} 22. Rag1 {[%clk 0:00:28]}  Bh4 {[%clk 0:00:10]} 23. Be1 {[%clk 0:00:21]}  Bxg3 {[%clk 0:00:04]} 24. Bxf2 {[%clk 0:00:19]}  Bxf2 {[%clk 0:00:04]} 25. Rxg6 {[%clk 0:00:19]}  Rxg6 {[%clk 0:00:04]} 26. Qxf7 {[%clk 0:00:19]}  Bc5 {[%clk 0:00:04]} 27. h4 {[%clk 0:00:14]}  Rg8 {[%clk 0:00:03]} 28. h5 {[%clk 0:00:14]}  Be7 {[%clk 0:00:04]} 29. h6 {[%clk 0:00:14]}  Rf8 {[%clk 0:00:04]} 30. Qh5 {[%clk 0:00:13]}  Kg8 {[%clk 0:00:01]} 31. Qg4+ {[%clk 0:00:13]}  Kf7 {[%clk 0:00:02]} 32. Ng5+ {[%clk 0:00:13]}  Ke8 {[%clk 0:00:02]} 33. Ne6 {[%clk 0:00:13]}  Rf7 {[%clk 0:00:02]} 34. Qg8+ {[%clk 0:00:12]}  Bf8 {[%clk 0:00:02]} 35. Nxf8 {[%clk 0:00:12]}  Rxf8 {[%clk 0:00:03]} 36. Qxh7 {[%clk 0:00:13]}  Rf1+ {[%clk 0:00:03]} 37. Kg2 {[%clk 0:00:12]}  Re1 {[%clk 0:00:03]} 38. Qg8+ {[%clk 0:00:11]}  Kd7 {[%clk 0:00:03]} 39. h7 {[%clk 0:00:12]}  Nxe5 {[%clk 0:00:02]} 40. h8=Q {[%clk 0:00:12]}  Re2+ {[%clk 0:00:01]} 41. Kf1 {[%clk 0:00:12]}  Rf2+ {[%clk 0:00:01]} 42. Kxf2 {[%clk 0:00:12]}  Nd3+ {[%clk 0:00:01]} 43. Ke3 {[%clk 0:00:11]} 1-0


[Site "https://www.chess.com"]

[Event "Titled Tuesday Blitz May 9 Early 2023"]
[White "Omariev, Maksim"]
[Black "Andreev, Konstantin"]
[WhiteFideId "4193423"]
[BlackFideId "24239305"]
[WhiteElo "2381"]
[BlackElo "2106"]
[Result "1-0"]
[Round "08"]
[TimeControl "180+2"]
[Date "2023.05.09"]
[WhiteClock "0:00:03"]
[BlackClock "0:00:13"]

1. g4 {[%clk 0:03:00]}  d5 {[%clk 0:03:00]} 2. Bg2 {[%clk 0:03:01]}  Bxg4 {[%clk 0:02:59]} 3. c4 {[%clk 0:03:00]}  Be6 {[%clk 0:02:59]} 4. Qb3 {[%clk 0:03:00]}  Qc8 {[%clk 0:02:46]} 5. cxd5 {[%clk 0:03:00]}  Bd7 {[%clk 0:02:47]} 6. Nc3 {[%clk 0:02:59]}  Nf6 {[%clk 0:02:48]} 7. d4 {[%clk 0:02:59]}  g6 {[%clk 0:02:48]} 8. Bf4 {[%clk 0:02:59]}  Bg7 {[%clk 0:02:48]} 9. Rc1 {[%clk 0:02:59]}  O-O {[%clk 0:02:42]} 10. e4 {[%clk 0:02:59]}  e6 {[%clk 0:02:39]} 11. dxe6 {[%clk 0:02:52]}  Bxe6 {[%clk 0:02:40]} 12. d5 {[%clk 0:02:53]}  Bd7 {[%clk 0:02:37]} 13. Nge2 {[%clk 0:02:47]}  Re8 {[%clk 0:02:37]} 14. O-O {[%clk 0:02:42]}  Bh3 {[%clk 0:02:38]} 15. f3 {[%clk 0:01:45]}  Bxg2 {[%clk 0:02:36]} 16. Kxg2 {[%clk 0:01:46]}  Nh5 {[%clk 0:02:33]} 17. Bg5 {[%clk 0:01:29]}  h6 {[%clk 0:02:30]} 18. Be3 {[%clk 0:01:23]}  c6 {[%clk 0:02:25]} 19. Nf4 {[%clk 0:00:39]}  Nxf4+ {[%clk 0:02:14]} 20. Bxf4 {[%clk 0:00:40]}  Qd8 {[%clk 0:02:14]} 21. Qxb7 {[%clk 0:00:35]}  Nd7 {[%clk 0:02:12]} 22. dxc6 {[%clk 0:00:31]}  Nc5 {[%clk 0:02:12]} 23. Qb5 {[%clk 0:00:28]}  Nd3 {[%clk 0:02:08]} 24. Be3 {[%clk 0:00:16]}  Nxc1 {[%clk 0:02:07]} 25. Rxc1 {[%clk 0:00:17]}  Rb8 {[%clk 0:02:06]} 26. Qe2 {[%clk 0:00:17]}  Qd6 {[%clk 0:01:49]} 27. Nb5 {[%clk 0:00:06]}  Qb4 {[%clk 0:01:44]} 28. Nxa7 {[%clk 0:00:06]}  Qxb2 {[%clk 0:01:42]} 29. Rc2 {[%clk 0:00:03]}  Qe5 {[%clk 0:01:06]} 30. c7 {[%clk 0:00:03]}  Rbc8 {[%clk 0:01:07]} 31. Nxc8 {[%clk 0:00:03]}  Rxc8 {[%clk 0:01:08]} 32. Qc4 {[%clk 0:00:02]}  Bf8 {[%clk 0:01:07]} 33. Qd5 {[%clk 0:00:03]}  Qe7 {[%clk 0:00:58]} 34. Qb7 {[%clk 0:00:02]}  Qd7 {[%clk 0:00:58]} 35. Bf4 {[%clk 0:00:02]}  g5 {[%clk 0:00:47]} 36. Bg3 {[%clk 0:00:03]}  h5 {[%clk 0:00:44]} 37. h3 {[%clk 0:00:03]}  h4 {[%clk 0:00:43]} 38. Bh2 {[%clk 0:00:03]}  Qd1 {[%clk 0:00:43]} 39. Rf2 {[%clk 0:00:03]}  Qd7 {[%clk 0:00:40]} 40. a4 {[%clk 0:00:03]}  Bc5 {[%clk 0:00:36]} 41. Re2 {[%clk 0:00:02]}  Qd3 {[%clk 0:00:35]} 42. Qxc8+ {[%clk 0:00:02]}  Kh7 {[%clk 0:00:34]} 43. Rb2 {[%clk 0:00:03]}  Qd4 {[%clk 0:00:32]} 44. Qb7 {[%clk 0:00:04]}  g4 {[%clk 0:00:26]} 45. hxg4 {[%clk 0:00:03]}  h3+ {[%clk 0:00:16]} 46. Kxh3 {[%clk 0:00:03]}  Qe3 {[%clk 0:00:13]} 47. e5 {[%clk 0:00:03]}  Qxf3+ {[%clk 0:00:13]} 48. Qxf3 {[%clk 0:00:03]} 1-0


[Site "https://www.chess.com"]

[Event "Titled Tuesday Blitz May 9 Early 2023"]
[White "Mirzoev, Azer"]
[Black "Salman, Pavel"]
[WhiteFideId "13400304"]
[BlackFideId "24153753"]
[WhiteElo "2525"]
[BlackElo "2187"]
[Result "1-0"]
[Round "08"]
[TimeControl "180+2"]
[Date "2023.05.09"]
[WhiteClock "0:01:36"]
[BlackClock "0:00:03"]

1. e4 {[%clk 0:03:00]}  c5 {[%clk 0:02:58]} 2. Nc3 {[%clk 0:03:00]}  e6 {[%clk 0:02:59]} 3. g3 {[%clk 0:03:00]}  d6 {[%clk 0:02:58]} 4. Bg2 {[%clk 0:03:00]}  Nf6 {[%clk 0:02:58]} 5. d3 {[%clk 0:03:01]}  Nc6 {[%clk 0:02:57]} 6. f4 {[%clk 0:03:01]}  g6 {[%clk 0:02:58]} 7. Nh3 {[%clk 0:03:00]}  Bg7 {[%clk 0:02:56]} 8. O-O {[%clk 0:03:00]}  Nd4 {[%clk 0:02:56]} 9. Ne2 {[%clk 0:02:58]}  Nd7 {[%clk 0:02:44]} 10. c3 {[%clk 0:02:58]}  Nxe2+ {[%clk 0:02:43]} 11. Qxe2 {[%clk 0:02:58]}  Qe7 {[%clk 0:02:43]} 12. Bd2 {[%clk 0:02:56]}  O-O {[%clk 0:02:37]} 13. Rae1 {[%clk 0:02:57]}  Rb8 {[%clk 0:02:29]} 14. f5 {[%clk 0:02:54]}  exf5 {[%clk 0:02:29]} 15. exf5 {[%clk 0:02:54]}  Qxe2 {[%clk 0:02:28]} 16. Rxe2 {[%clk 0:02:54]}  gxf5 {[%clk 0:02:27]} 17. Bf4 {[%clk 0:02:44]}  Ne5 {[%clk 0:01:45]} 18. d4 {[%clk 0:02:43]}  cxd4 {[%clk 0:01:46]} 19. cxd4 {[%clk 0:02:44]}  Nc4 {[%clk 0:01:47]} 20. Rd1 {[%clk 0:02:42]}  Rd8 {[%clk 0:01:33]} 21. b3 {[%clk 0:02:41]}  Nb6 {[%clk 0:01:31]} 22. Bg5 {[%clk 0:02:42]}  f6 {[%clk 0:01:30]} 23. Bh4 {[%clk 0:02:41]}  Bd7 {[%clk 0:01:29]} 24. Nf4 {[%clk 0:02:37]}  Re8 {[%clk 0:01:28]} 25. Rf2 {[%clk 0:02:33]}  Kf7 {[%clk 0:01:15]} 26. Bf3 {[%clk 0:02:23]}  Re3 {[%clk 0:01:06]} 27. Bh5+ {[%clk 0:02:19]}  Kg8 {[%clk 0:01:06]} 28. d5 {[%clk 0:02:16]}  Rc8 {[%clk 0:01:03]} 29. Ne6 {[%clk 0:02:07]}  Bxe6 {[%clk 0:01:00]} 30. dxe6 {[%clk 0:02:07]}  Rxe6 {[%clk 0:00:57]} 31. Rxf5 {[%clk 0:02:07]}  Rc5 {[%clk 0:00:41]} 32. Rxc5 {[%clk 0:02:06]}  dxc5 {[%clk 0:00:42]} 33. Rd8+ {[%clk 0:02:06]}  Bf8 {[%clk 0:00:42]} 34. Bf3 {[%clk 0:02:01]}  Kg7 {[%clk 0:00:30]} 35. Rb8 {[%clk 0:01:58]}  Kg6 {[%clk 0:00:23]} 36. Rxf8 {[%clk 0:01:56]}  c4 {[%clk 0:00:21]} 37. bxc4 {[%clk 0:01:54]}  Nxc4 {[%clk 0:00:19]} 38. Bd5 {[%clk 0:01:53]}  Re1+ {[%clk 0:00:19]} 39. Kf2 {[%clk 0:01:53]}  Rc1 {[%clk 0:00:19]} 40. Be4+ {[%clk 0:01:53]}  Kg7 {[%clk 0:00:18]} 41. Rc8 {[%clk 0:01:47]}  b5 {[%clk 0:00:18]} 42. Rc7+ {[%clk 0:01:47]}  Kf8 {[%clk 0:00:17]} 43. Bxf6 {[%clk 0:01:42]}  Ke8 {[%clk 0:00:17]} 44. Bxh7 {[%clk 0:01:39]}  Rd1 {[%clk 0:00:04]} 45. Bg6+ {[%clk 0:01:38]}  Kf8 {[%clk 0:00:04]} 46. Rc8+ {[%clk 0:01:38]}  Rd8 {[%clk 0:00:03]} 47. Rxd8# {[%clk 0:01:36]} 1-0


[Site "https://www.chess.com"]

[Event "Titled Tuesday Blitz May 9 Early 2023"]
[White "Bilan, Danila"]
[Black "Matveeva, Olga"]
[WhiteFideId "24161918"]
[BlackFideId "24107018"]
[WhiteElo "2182"]
[BlackElo "2009"]
[Result "1-0"]
[Round "08"]
[TimeControl "180+2"]
[Date "2023.05.09"]
[WhiteClock "0:00:05"]
[BlackClock "0:00:09"]

1. d4 {[%clk 0:03:00]}  Nf6 {[%clk 0:02:59]} 2. Nf3 {[%clk 0:03:01]}  g6 {[%clk 0:02:58]} 3. Bg5 {[%clk 0:03:01]}  Bg7 {[%clk 0:02:58]} 4. c3 {[%clk 0:03:01]}  d5 {[%clk 0:02:57]} 5. Nbd2 {[%clk 0:03:01]}  O-O {[%clk 0:02:56]} 6. e3 {[%clk 0:03:01]}  c6 {[%clk 0:02:55]} 7. Bd3 {[%clk 0:03:00]}  Nbd7 {[%clk 0:02:54]} 8. O-O {[%clk 0:02:58]}  Re8 {[%clk 0:02:54]} 9. e4 {[%clk 0:02:56]}  dxe4 {[%clk 0:02:53]} 10. Nxe4 {[%clk 0:02:56]}  Nxe4 {[%clk 0:02:53]} 11. Bxe4 {[%clk 0:02:57]}  Nf6 {[%clk 0:02:53]} 12. Bc2 {[%clk 0:02:56]}  Bg4 {[%clk 0:02:50]} 13. h3 {[%clk 0:02:55]}  Be6 {[%clk 0:02:42]} 14. Re1 {[%clk 0:02:51]}  Bd5 {[%clk 0:02:39]} 15. Ne5 {[%clk 0:02:44]}  b5 {[%clk 0:02:29]} 16. Qd2 {[%clk 0:02:14]}  Nd7 {[%clk 0:02:25]} 17. Nd3 {[%clk 0:02:07]}  f6 {[%clk 0:02:03]} 18. Bh4 {[%clk 0:02:02]}  Qb6 {[%clk 0:01:57]} 19. Nf4 {[%clk 0:01:48]}  Bf7 {[%clk 0:01:41]} 20. Ne6 {[%clk 0:01:44]}  Bh8 {[%clk 0:01:39]} 21. Bb3 {[%clk 0:01:36]}  c5 {[%clk 0:01:35]} 22. Bd5 {[%clk 0:01:04]}  Rac8 {[%clk 0:01:32]} 23. Bg3 {[%clk 0:00:54]}  cxd4 {[%clk 0:01:30]} 24. cxd4 {[%clk 0:00:48]}  f5 {[%clk 0:01:26]} 25. Bb3 {[%clk 0:00:34]}  a5 {[%clk 0:01:20]} 26. a3 {[%clk 0:00:25]}  Nf6 {[%clk 0:01:12]} 27. f3 {[%clk 0:00:22]}  Ne4 {[%clk 0:01:05]} 28. fxe4 {[%clk 0:00:16]}  Bxe6 {[%clk 0:01:05]} 29. Bxe6+ {[%clk 0:00:12]}  Qxe6 {[%clk 0:01:01]} 30. exf5 {[%clk 0:00:07]}  Qxf5 {[%clk 0:01:00]} 31. Qxa5 {[%clk 0:00:07]}  Bxd4+ {[%clk 0:00:59]} 32. Kh2 {[%clk 0:00:07]}  Rc2 {[%clk 0:00:55]} 33. Rf1 {[%clk 0:00:05]}  Qd5 {[%clk 0:00:55]} 34. Rg1 {[%clk 0:00:03]}  Bxg1+ {[%clk 0:00:54]} 35. Rxg1 {[%clk 0:00:03]}  Rxb2 {[%clk 0:00:50]} 36. Qc3 {[%clk 0:00:04]}  Rd2 {[%clk 0:00:48]} 37. Qe3 {[%clk 0:00:03]}  e5 {[%clk 0:00:46]} 38. Bf4 {[%clk 0:00:03]}  Rf8 {[%clk 0:00:36]} 39. Qxd2 {[%clk 0:00:03]}  Qxd2 {[%clk 0:00:16]} 40. Bxd2 {[%clk 0:00:04]}  Rf2 {[%clk 0:00:15]} 41. Bb4 {[%clk 0:00:05]}  e4 {[%clk 0:00:15]} 42. Re1 {[%clk 0:00:05]}  Kf7 {[%clk 0:00:12]} 43. Rxe4 {[%clk 0:00:05]}  Rc2 {[%clk 0:00:09]} 44. Re5 {[%clk 0:00:05]} 1-0


[Site "https://www.chess.com"]

[Event "Titled Tuesday Blitz May 9 Early 2023"]
[White "Barbot, Pierre"]
[Black "ElenGajger"]
[WhiteFideId "663727"]
[WhiteElo "2431"]
[BlackElo "2474"]
[Result "1-0"]
[Round "08"]
[TimeControl "180+2"]
[Date "2023.05.09"]
[WhiteClock "0:00:05"]
[BlackClock "0:00:16"]

1. d4 {[%clk 0:03:00]}  Nf6 {[%clk 0:02:59]} 2. Nc3 {[%clk 0:03:01]}  d5 {[%clk 0:02:57]} 3. Bf4 {[%clk 0:03:00]}  g6 {[%clk 0:02:56]} 4. e3 {[%clk 0:02:57]}  Bg7 {[%clk 0:02:55]} 5. h4 {[%clk 0:02:47]}  h6 {[%clk 0:02:35]} 6. Be2 {[%clk 0:02:28]}  O-O {[%clk 0:02:31]} 7. h5 {[%clk 0:02:06]}  g5 {[%clk 0:02:31]} 8. Be5 {[%clk 0:02:06]}  Nbd7 {[%clk 0:02:30]} 9. f4 {[%clk 0:02:03]}  Nxe5 {[%clk 0:02:04]} 10. dxe5 {[%clk 0:01:41]}  Ne4 {[%clk 0:02:04]} 11. Qxd5 {[%clk 0:01:38]}  Nxc3 {[%clk 0:01:58]} 12. Qxd8 {[%clk 0:01:37]}  Rxd8 {[%clk 0:01:59]} 13. bxc3 {[%clk 0:01:38]}  Bf5 {[%clk 0:01:57]} 14. Rc1 {[%clk 0:01:22]}  Rd7 {[%clk 0:01:46]} 15. Nf3 {[%clk 0:01:21]}  g4 {[%clk 0:01:37]} 16. Nd4 {[%clk 0:01:17]}  Be4 {[%clk 0:01:36]} 17. Bxg4 {[%clk 0:01:14]}  e6 {[%clk 0:01:35]} 18. Bf3 {[%clk 0:01:09]}  Bxf3 {[%clk 0:01:34]} 19. Nxf3 {[%clk 0:01:05]}  Rad8 {[%clk 0:01:32]} 20. Ke2 {[%clk 0:01:04]}  f6 {[%clk 0:01:29]} 21. Rhd1 {[%clk 0:01:00]}  fxe5 {[%clk 0:01:27]} 22. Nxe5 {[%clk 0:00:52]}  Bxe5 {[%clk 0:01:26]} 23. fxe5 {[%clk 0:00:53]}  Kf8 {[%clk 0:01:18]} 24. Rd3 {[%clk 0:00:40]}  Rxd3 {[%clk 0:00:34]} 25. cxd3 {[%clk 0:00:40]}  Ke7 {[%clk 0:00:34]} 26. g4 {[%clk 0:00:20]}  Rd5 {[%clk 0:00:32]} 27. d4 {[%clk 0:00:21]}  Ra5 {[%clk 0:00:33]} 28. Rf1 {[%clk 0:00:21]}  Rxa2+ {[%clk 0:00:32]} 29. Kd3 {[%clk 0:00:18]}  Rg2 {[%clk 0:00:31]} 30. Rf6 {[%clk 0:00:18]}  Rxg4 {[%clk 0:00:31]} 31. Rxh6 {[%clk 0:00:19]}  Rh4 {[%clk 0:00:29]} 32. Rh7+ {[%clk 0:00:16]}  Kd8 {[%clk 0:00:30]} 33. h6 {[%clk 0:00:06]}  b5 {[%clk 0:00:28]} 34. Rh8+ {[%clk 0:00:05]}  Kd7 {[%clk 0:00:28]} 35. Ke2 {[%clk 0:00:03]}  a5 {[%clk 0:00:27]} 36. Kd2 {[%clk 0:00:04]}  a4 {[%clk 0:00:27]} 37. Kc2 {[%clk 0:00:03]}  Rh2+ {[%clk 0:00:26]} 38. Kb1 {[%clk 0:00:03]}  a3 {[%clk 0:00:26]} 39. Ka1 {[%clk 0:00:03]}  a2 {[%clk 0:00:25]} 40. h7 {[%clk 0:00:03]}  Kc6 {[%clk 0:00:23]} 41. e4 {[%clk 0:00:03]}  Kd7 {[%clk 0:00:21]} 42. d5 {[%clk 0:00:03]}  Ke7 {[%clk 0:00:19]} 43. Rc8 {[%clk 0:00:03]}  Rxh7 {[%clk 0:00:17]} 44. Rxc7+ {[%clk 0:00:03]}  Kd8 {[%clk 0:00:17]} 45. Rxh7 {[%clk 0:00:04]}  exd5 {[%clk 0:00:17]} 46. exd5 {[%clk 0:00:04]}  b4 {[%clk 0:00:16]} 47. Kxa2 {[%clk 0:00:05]} 1-0


[Site "https://www.chess.com"]

[Event "Titled Tuesday Blitz May 9 Early 2023"]
[White "Vifleemskaia, Svetlana"]
[Black "Bettalli, Francesco"]
[WhiteFideId "4129490"]
[BlackFideId "2816453"]
[WhiteElo "1930"]
[BlackElo "2216"]
[Result "0-1"]
[Round "08"]
[TimeControl "180+2"]
[Date "2023.05.09"]
[WhiteClock "0:00:00"]
[BlackClock "0:00:18"]

1. d4 {[%clk 0:03:00]}  g6 {[%clk 0:03:00]} 2. c4 {[%clk 0:03:00]}  Bg7 {[%clk 0:03:00]} 3. e4 {[%clk 0:03:01]}  c6 {[%clk 0:03:00]} 4. Nc3 {[%clk 0:03:00]}  Nf6 {[%clk 0:02:59]} 5. e5 {[%clk 0:02:55]}  Ng8 {[%clk 0:02:59]} 6. f4 {[%clk 0:02:55]}  h5 {[%clk 0:02:59]} 7. Nf3 {[%clk 0:02:54]}  d6 {[%clk 0:02:59]} 8. Bd3 {[%clk 0:02:52]}  Rh7 {[%clk 0:02:58]} 9. O-O {[%clk 0:02:51]}  Nh6 {[%clk 0:02:58]} 10. Ne4 {[%clk 0:02:49]}  d5 {[%clk 0:02:57]} 11. Neg5 {[%clk 0:02:48]}  Rh8 {[%clk 0:02:57]} 12. e6 {[%clk 0:02:48]}  Bxe6 {[%clk 0:02:54]} 13. Nxe6 {[%clk 0:02:48]}  fxe6 {[%clk 0:02:55]} 14. Bxg6+ {[%clk 0:02:48]}  Kd7 {[%clk 0:02:55]} 15. Ne5+ {[%clk 0:02:45]}  Bxe5 {[%clk 0:02:54]} 16. fxe5 {[%clk 0:02:44]}  Ng4 {[%clk 0:02:54]} 17. Bxh5 {[%clk 0:02:37]}  Rxh5 {[%clk 0:02:54]} 18. Qxg4 {[%clk 0:02:37]}  Qh8 {[%clk 0:02:54]} 19. h3 {[%clk 0:02:35]}  Na6 {[%clk 0:02:53]} 20. cxd5 {[%clk 0:02:30]}  cxd5 {[%clk 0:02:54]} 21. Bg5 {[%clk 0:02:23]}  Rg8 {[%clk 0:02:53]} 22. h4 {[%clk 0:02:23]}  Nb4 {[%clk 0:02:50]} 23. Rac1 {[%clk 0:02:17]}  Nd3 {[%clk 0:02:49]} 24. Qf3 {[%clk 0:01:03]}  Nxc1 {[%clk 0:02:44]} 25. Rxc1 {[%clk 0:00:57]}  Rgxg5 {[%clk 0:02:44]} 26. Qb3 {[%clk 0:00:28]}  Rxg2+ {[%clk 0:02:16]} 27. Kxg2 {[%clk 0:00:28]}  Qg7+ {[%clk 0:02:16]} 28. Kh3 {[%clk 0:00:26]}  Rf5 {[%clk 0:01:35]} 29. Qb5+ {[%clk 0:00:16]}  Kd8 {[%clk 0:01:34]} 30. Rf1 {[%clk 0:00:11]}  Qf7 {[%clk 0:01:06]} 31. Rxf5 {[%clk 0:00:07]}  Qxf5+ {[%clk 0:01:07]} 32. Kg3 {[%clk 0:00:05]}  Qg6+ {[%clk 0:01:07]} 33. Kh3 {[%clk 0:00:05]}  Qg1 {[%clk 0:00:40]} 34. Qxb7 {[%clk 0:00:03]}  Qxd4 {[%clk 0:00:41]} 35. Qb8+ {[%clk 0:00:03]}  Kd7 {[%clk 0:00:41]} 36. h5 {[%clk 0:00:03]}  Qe3+ {[%clk 0:00:38]} 37. Kg4 {[%clk 0:00:02]}  Qe2+ {[%clk 0:00:36]} 38. Kg5 {[%clk 0:00:03]}  Qg2+ {[%clk 0:00:36]} 39. Kh6 {[%clk 0:00:03]}  d4 {[%clk 0:00:31]} 40. Kh7 {[%clk 0:00:02]}  d3 {[%clk 0:00:28]} 41. Qb5+ {[%clk 0:00:01]}  Kc7 {[%clk 0:00:26]} 42. Qxd3 {[%clk 0:00:02]}  Qg5 {[%clk 0:00:26]} 43. Qe4 {[%clk 0:00:01]}  Qxh5+ {[%clk 0:00:25]} 44. Kg7 {[%clk 0:00:02]}  Qg5+ {[%clk 0:00:15]} 45. Kf7 {[%clk 0:00:02]}  Qf5+ {[%clk 0:00:16]} 46. Qxf5 {[%clk 0:00:02]}  exf5 {[%clk 0:00:17]} 47. Kxe7 {[%clk 0:00:00]}  f4 {[%clk 0:00:18]} 0-1


[Site "https://www.chess.com"]